bitfinex/quotes_BTCUSD_20250226
["timestamp","ask_amount","ask_price","bid_price","bid_amount"]
[1740593892656,0.0008492,86187.0,86186.0,1.53798285]
[1740593893432,0.0008492,86187.0,86186.0,3.03798285]
[1740593893626,0.00485,86218.0,86198.0,0.52855785]
[1740593893830,0.00097199,86199.0,86198.0,1.48085785]
[1740593894386,0.00097199,86199.0,86198.0,1.30684085]
[1740593894591,0.00097199,86199.0,86198.0,1.48085785]
[1740593895152,0.00097199,86199.0,86198.0,2.98085785]
[1740593895646,0.00485,86218.0,86217.0,0.513979]
[1740593895891,0.00485,86218.0,86217.0,1.50866874]
[1740593896136,0.00485,86218.0,86217.0,1.22184085]
[1740593896401,0.178827,86218.0,86217.0,0.64184085]
[1740593896654,0.178827,86218.0,86217.0,0.6395]
[1740593896886,0.178827,86218.0,86217.0,0.6273]
[1740593897138,0.178827,86218.0,86217.0,0.3]
[1740593897378,0.173981,86216.0,86215.0,0.26108]
[1740593897614,0.173981,86216.0,86215.0,0.56108]
[1740593897854,0.173981,86216.0,86215.0,0.54912]
[1740593898097,0.173981,86216.0,86215.0,0.24912]
[1740593898599,0.19517488,86216.0,86215.0,0.24912]
[1740593898839,0.19517488,86216.0,86174.0,0.26108]
[1740593898840,0.174064,86175.0,86174.0,0.26108]
[1740593899325,0.169064,86175.0,86174.0,0.26108]
[1740593899567,0.169064,86175.0,86174.0,0.56108]
[1740593899568,0.19025788,86175.0,86174.0,0.56108]
[1740593900306,0.19525788,86175.0,86174.0,0.26108]
[1740593900823,0.174064,86175.0,86174.0,0.26108]
[1740593901568,0.219064,86175.0,86174.0,0.26108]
[1740593902248,0.219064,86175.0,86171.0,0.00041083]
[1740593902249,0.17407,86172.0,86171.0,0.00041083]
[1740593903107,0.27952555,86172.0,86171.0,8.3e-07]
[1740593905106,0.174102,86156.0,86155.0,0.0004244]
[1740593905309,0.174102,86156.0,86155.0,0.00054759]
[1740593908471,0.174102,86156.0,86148.0,1.9e-07]
[1740593908472,0.174116,86149.0,86148.0,1.9e-07]
[1740593908692,0.27957155,86149.0,86148.0,9.2e-07]
[1740593908898,0.174133,86141.0,86140.0,9.2e-07]
[1740593909100,0.250833,86141.0,86140.0,9.2e-07]
[1740593909412,0.174143,86136.0,86135.0,9.2e-07]
[1740593909708,0.174169,86123.0,86122.0,0.005]
[1740593909855,0.174169,86123.0,86122.0,8.6e-07]
[1740593910073,0.255069,86123.0,86122.0,8.6e-07]
[1740593910279,0.275069,86123.0,86122.0,8.6e-07]
[1740593910705,0.275069,86123.0,86100.0,4e-05]
[1740593910706,0.194193,86111.0,86110.0,4e-07]
[1740593910867,0.174193,86111.0,86110.0,4e-07]
[1740593913853,0.272193,86111.0,86110.0,4e-07]
[1740593914262,0.17422,86098.0,86097.0,0.00179524]
[1740593916145,0.19422,86098.0,86097.0,2.4e-07]
[1740593916365,0.32462,86098.0,86097.0,2.4e-07]
[1740593916571,0.02,86093.0,86084.0,1e-06]
[1740593916773,0.1304,86098.0,86084.0,4.9e-07]
[1740593916774,0.54580976,86085.0,86084.0,4.9e-07]
[1740593916974,0.174272,86072.0,86071.0,4.9e-07]
[1740593917200,0.174272,86072.0,86071.0,0.02000049]
[1740593917395,0.232348,86078.0,86073.0,0.02]
[1740593917624,0.174266,86075.0,86074.0,0.03212]
[1740593918148,0.174266,86075.0,86074.0,1.83212]
[1740593918347,0.174266,86075.0,86074.0,1.84666085]
[1740593918566,0.174266,86075.0,86074.0,1.83454085]
[1740593918788,0.174266,86075.0,86074.0,1.84666085]
[1740593918992,0.17436954,86085.0,86084.0,0.02]
[1740593919493,0.17436954,86085.0,86084.0,0.03212]
[1740593919792,0.174264,86076.0,86075.0,0.32]
[1740593919947,0.174264,86076.0,86075.0,0.03454085]
[1740593920149,0.174264,86076.0,86075.0,0.04666085]
[1740593920353,0.00012354,86085.0,86071.0,4.9e-07]
[1740593920354,0.21897833,86087.0,86086.0,0.02]
[1740593920558,0.39322033,86087.0,86086.0,0.02]
[1740593921327,0.39322033,86087.0,86086.0,0.03208]
[1740593921728,0.174238,86089.0,86088.0,0.02]
[1740593921929,0.174238,86089.0,86088.0,0.03454085]
[1740593922134,0.174238,86089.0,86088.0,0.04662085]
[1740593922341,0.23231,86092.0,86080.0,0.3]
[1740593922545,0.23231,86092.0,86087.0,0.02]
[1740593922754,0.17424,86088.0,86087.0,0.02]
[1740593923157,0.17424,86088.0,86087.0,0.03208]
[1740593923915,0.17424,86088.0,86087.0,0.01208]
[1740593924126,0.17424,86088.0,86087.0,0.03208]
[1740593924339,0.17424,86088.0,86087.0,0.02]
[1740593924749,0.232317,86090.0,86080.0,0.00012354]
[1740593924750,0.232317,86090.0,86089.0,0.02]
[1740593924925,0.406553,86090.0,86089.0,0.03454085]
[1740593925133,0.406553,86090.0,86089.0,0.04662085]
[1740593925726,0.232228,86122.0,86096.0,0.3]
[1740593925925,0.10545555,86143.0,86122.0,0.02]
[1740593925926,0.1750188,86123.0,86122.0,0.02]
[1740593926458,0.1750188,86123.0,86122.0,0.03204]
[1740593926684,0.1750188,86123.0,86122.0,0.02]
[1740593927055,0.1750188,86123.0,86104.0,0.3]
[1740593927056,0.174205,86105.0,86104.0,0.32]
[1740593927285,0.174205,86105.0,86104.0,0.03204]
[1740593927494,0.174228,86094.0,86093.0,0.32]
[1740593927901,0.174228,86094.0,86093.0,0.03208]
[1740593928115,0.406525,86096.0,86095.0,0.02]
[1740593928530,0.406525,86096.0,86095.0,0.03454085]
[1740593928661,0.174224,86096.0,86095.0,0.03454085]
[1740593928874,0.174224,86096.0,86095.0,0.03204]
[1740593929078,0.174224,86096.0,86095.0,0.02]
[1740593929296,0.174224,86096.0,86095.0,0.04658085]
[1740593929505,0.23229,86100.0,86089.0,0.0004249]
[1740593929506,0.174236,86090.0,86089.0,0.0004249]
[1740593929831,0.174236,86090.0,86089.0,0.0204249]
[1740593930436,0.174236,86090.0,86089.0,0.06831494]
[1740593930639,0.17423,86093.0,86092.0,0.02]
[1740593931194,0.17423,86093.0,86092.0,0.03454085]
[1740593931448,0.17423,86093.0,86092.0,0.06795652]
[1740593931698,0.17423,86093.0,86092.0,0.02]
[1740593931943,0.17423,86093.0,86092.0,0.04658085]
[1740593932188,0.17423,86093.0,86092.0,0.07051365]
[1740593932420,0.17423,86093.0,86092.0,0.08255365]
[1740593932652,0.17423,86093.0,86092.0,0.07051365]
[1740593932899,0.17423,86093.0,86092.0,0.0480128]
[1740593933144,0.17423,86093.0,86092.0,0.0680128]
[1740593934088,0.17423,86093.0,86092.0,0.0559728]
[1740593934289,0.17423,86093.0,86092.0,0.0680128]
[1740593936255,0.17423,86093.0,86092.0,0.0679728]
[1740593936478,0.17423,86093.0,86092.0,0.0560128]
[1740593936733,0.17423,86093.0,86092.0,0.0679728]
[1740593937440,0.08678517,86093.0,86092.0,0.0560128]
[1740593937625,0.17423,86093.0,86092.0,0.0360128]
[1740593937830,0.17423,86093.0,86092.0,0.0679728]
[1740593938093,0.232303,86095.0,86092.0,0.0679728]
[1740593938318,0.232299,86096.0,86094.0,0.02]
[1740593938560,0.174226,86095.0,86094.0,0.02]
[1740593938771,0.174226,86095.0,86094.0,0.05615109]
[1740593938978,0.174226,86095.0,86094.0,0.06811109]
[1740593939216,0.174226,86095.0,86094.0,1.86811109]
[1740593939433,0.174226,86095.0,86094.0,1.85615109]
[1740593939639,0.174226,86095.0,86094.0,0.36807109]
[1740593940090,0.174226,86095.0,86094.0,0.35615109]
[1740593940302,0.174226,86095.0,86094.0,0.36807109]
[1740593940521,0.232273,86106.0,86094.0,0.36807109]
[1740593940522,0.045,86124.0,86115.0,0.02]
[1740593940729,0.174183,86116.0,86115.0,0.02]
[1740593940934,0.23226,86111.0,86102.0,0.02]
[1740593941144,0.232274,86105.0,86103.0,0.01192]
[1740593941357,0.174207,86104.0,86103.0,0.01192]
[1740593941564,0.174207,86104.0,86103.0,0.06812687]
[1740593941765,0.174207,86104.0,86103.0,0.05620687]
[1740593942170,0.174207,86104.0,86103.0,0.06808687]
[1740593942402,0.174207,86104.0,86103.0,0.05620687]
[1740593942786,0.174207,86104.0,86103.0,0.06812687]
[1740593943198,0.23225,86114.0,86113.0,0.02]
[1740593943199,0.406437,86114.0,86113.0,0.02]
[1740593943407,0.174187,86114.0,86113.0,0.05620687]
[1740593943606,0.174187,86114.0,86113.0,0.06808687]
[1740593943816,0.174187,86114.0,86113.0,0.08262772]
[1740593944009,0.232244,86116.0,86115.0,0.02]
[1740593944215,0.174183,86117.0,86116.0,0.01454085]
[1740593944446,0.0008498,86123.0,86117.0,0.03454085]
[1740593944650,0.0008498,86123.0,86117.0,0.73214714]
[1740593944806,0.0008498,86123.0,86117.0,1.46764772]
[1740593945011,0.17430283,86118.0,86117.0,1.24584772]
[1740593945222,0.00012383,86118.0,86117.0,2.76584772]
[1740593945869,0.00012383,86118.0,86117.0,2.76588772]
[1740593946373,0.17430283,86118.0,86117.0,0.37078772]
[1740593946707,0.00012383,86118.0,86117.0,0.07078772]
[1740593946934,0.17430283,86118.0,86117.0,0.07078772]
[1740593947571,0.17430283,86118.0,86117.0,0.05624687]
[1740593947782,0.17430283,86118.0,86117.0,0.06816687]
[1740593947991,0.00012383,86118.0,86117.0,0.08270772]
[1740593948221,0.00485,86154.0,86118.0,0.01454085]
[1740593948460,0.232158,86149.0,86146.0,0.02]
[1740593948643,0.232158,86149.0,86147.0,0.03620687]
[1740593948873,0.232158,86149.0,86137.0,0.02]
[1740593949047,0.00497383,86154.0,86138.0,0.03616933]
[1740593949253,0.00497383,86154.0,86135.0,0.03188]
[1740593949484,0.174143,86136.0,86135.0,0.02]
[1740593949688,0.174143,86136.0,86135.0,0.01188]
[1740593949896,0.174143,86136.0,86135.0,0.03616651]
[1740593950105,0.174143,86136.0,86135.0,0.05616651]
[1740593950531,0.174143,86136.0,86135.0,0.06804651]
[1740593950946,0.174143,86136.0,86135.0,0.05616651]
[1740593951157,0.174143,86136.0,86135.0,0.03616651]
[1740593951363,0.174143,86136.0,86135.0,0.06804651]
[1740593951771,0.174143,86136.0,86135.0,0.04936651]
[1740593952246,0.174143,86136.0,86135.0,0.06124651]
[1740593952459,0.174143,86136.0,86135.0,0.04936651]
[1740593953112,0.174143,86136.0,86135.0,0.06120651]
[1740593953546,0.174143,86136.0,86135.0,0.04936651]
[1740593953752,0.174143,86136.0,86135.0,0.06120651]
[1740593953934,0.174143,86136.0,86135.0,0.04936651]
[1740593954105,0.174143,86136.0,86135.0,0.06120651]
[1740593954526,0.174143,86136.0,86122.0,0.3273]
[1740593954527,1.16569683,86154.0,86122.0,0.3273]
[1740593954727,0.174151,86132.0,86131.0,0.02]
[1740593954930,0.174151,86132.0,86131.0,0.03184]
[1740593955129,0.174151,86132.0,86131.0,0.02]
[1740593955307,0.174151,86132.0,86131.0,0.03184]
[1740593955523,0.174151,86132.0,86131.0,0.02]
[1740593955946,0.174151,86132.0,86131.0,0.03184]
[1740593956140,0.174151,86132.0,86131.0,0.02]
[1740593956365,0.174151,86132.0,86131.0,0.03184]
[1740593956663,0.174151,86132.0,86131.0,0.02]
[1740593956990,0.174151,86132.0,86131.0,0.03184]
[1740593957403,0.174151,86132.0,86131.0,0.02]
[1740593957582,0.174151,86132.0,86131.0,0.03184]
[1740593958166,0.174151,86132.0,86131.0,0.01184]
[1740593958396,0.174151,86132.0,86131.0,0.02]
[1740593959033,0.232198,86134.0,86132.0,0.02]
[1740593959378,0.174149,86133.0,86132.0,0.02]
[1740593959570,0.174151,86132.0,86131.0,0.0118]
[1740593959770,0.232198,86134.0,86132.0,0.02]
[1740593959933,0.174149,86133.0,86132.0,0.02]
[1740593960965,0.174149,86133.0,86132.0,0.0318]
[1740593962344,0.174149,86133.0,86132.0,0.03176]
[1740593962552,0.174149,86133.0,86132.0,0.02]
[1740593962770,0.174149,86133.0,86132.0,0.03176]
[1740593963560,0.174149,86133.0,86132.0,0.02]
[1740593963764,0.174149,86133.0,86132.0,0.03176]
[1740593964542,0.174179,86118.0,86117.0,1e-06]
[1740593965122,0.174179,86118.0,86117.0,0.020001]
[1740593965322,0.174179,86118.0,86117.0,1e-06]
[1740593965522,0.174179,86118.0,86117.0,0.020001]
[1740593965785,0.174179,86118.0,86117.0,0.031801]
[1740593966542,0.174179,86118.0,86117.0,0.020001]
[1740593966730,0.1719928,86118.0,86117.0,0.031761]
[1740593968999,0.1719928,86118.0,86117.0,0.020001]
[1740593969345,0.232236,86120.0,86117.0,0.031761]
[1740593969561,0.406405,86121.0,86120.0,0.02]
[1740593970319,0.406405,86121.0,86120.0,0.03176]
[1740593970546,0.406405,86121.0,86120.0,0.02]
[1740593970809,0.406405,86121.0,86120.0,0.03176]
[1740593971627,0.174179,86118.0,86117.0,1e-06]
[1740593971986,0.220279,86118.0,86117.0,1e-06]
[1740593972183,0.174179,86118.0,86117.0,1e-06]
[1740593972718,0.232232,86121.0,86117.0,0.031761]
[1740593973060,0.174179,86118.0,86117.0,0.011761]
[1740593973216,0.174179,86118.0,86117.0,1e-06]
[1740593973760,0.174207,86104.0,86103.0,4e-05]
[1740593973924,0.174207,86104.0,86103.0,0.02016383]
[1740593974526,0.174207,86104.0,86103.0,0.03192383]
[1740593975393,0.174207,86104.0,86103.0,0.02016383]
[1740593975596,0.174207,86104.0,86103.0,0.03192383]
[1740593976049,0.174207,86104.0,86103.0,0.02016383]
[1740593976266,0.174207,86104.0,86103.0,0.03192383]
[1740593976736,0.174207,86104.0,86103.0,0.02016383]
[1740593976980,0.174207,86104.0,86103.0,8.3e-07]
[1740593977521,0.174207,86104.0,86103.0,0.00042463]
[1740593978478,0.174207,86104.0,86103.0,0.02042463]
[1740593978700,0.174207,86104.0,86103.0,0.03218463]
[1740593979547,0.174207,86104.0,86103.0,0.02042463]
[1740593979974,0.174207,86104.0,86103.0,0.33218463]
[1740593981072,0.174207,86104.0,86103.0,0.32042463]
[1740593981302,0.174207,86104.0,86103.0,0.33218463]
[1740593981522,0.174207,86104.0,86103.0,0.32042463]
[1740593981876,0.174207,86104.0,86103.0,0.33218463]
[1740593982117,0.174207,86104.0,86103.0,0.32042463]
[1740593982381,0.174207,86104.0,86103.0,0.33218463]
[1740593982824,0.174207,86104.0,86103.0,0.00042463]
[1740593983077,0.174207,86104.0,86103.0,6.3e-07]
[1740593983307,0.303007,86104.0,86103.0,6.3e-07]
[1740593983544,0.20595152,86106.0,86103.0,6.3e-07]
[1740593983779,0.174207,86104.0,86103.0,6.3e-07]
[1740593986835,0.23227,86107.0,86103.0,6.3e-07]
[1740593987089,0.4,86314.0,86093.0,3.799e-05]
[1740593987090,0.174228,86094.0,86093.0,3.799e-05]
[1740593987297,0.174228,86094.0,86093.0,0.02003799]
[1740593987718,0.174228,86094.0,86093.0,1.51901026]
[1740593987916,0.174228,86094.0,86093.0,0.01901026]
[1740593988322,0.17423,86093.0,86089.0,0.0004249]
[1740593988565,0.17423,86093.0,86091.0,0.01901026]
[1740593988783,0.17423,86093.0,86090.0,0.01176]
[1740593988976,0.17423,86093.0,86091.0,0.01901026]
[1740593989181,0.17423,86093.0,86089.0,0.03119516]
[1740593989357,0.17423,86093.0,86089.0,0.0004249]
[1740593989358,0.174236,86090.0,86089.0,0.0004249]
[1740593990637,0.174236,86090.0,86089.0,9e-07]
[1740593992495,0.10545555,86090.0,86087.0,9e-07]
[1740593992721,0.17424,86088.0,86087.0,9e-07]
[1740593992936,0.27969555,86088.0,86087.0,9e-07]
[1740593994587,0.17424,86088.0,86087.0,9e-07]
[1740593995545,0.17424,86088.0,86087.0,0.0040009]
[1740593995959,0.17424,86088.0,86087.0,9e-07]
[1740593996165,0.17424,86088.0,86087.0,0.0070009]
[1740593996809,0.17424,86088.0,86087.0,9e-07]
[1740593998595,0.54394225,86088.0,86087.0,9e-07]
[1740593999223,0.54894225,86088.0,86087.0,9e-07]
[1740593999619,0.174272,86072.0,86071.0,4.9e-07]
[1740594000880,0.174272,86072.0,86071.0,3e-08]
[1740594001227,0.11292763,86073.0,86052.0,3e-08]
[1740594001475,0.174311,86053.0,86052.0,3e-08]
[1740594001994,0.174311,86053.0,86052.0,0.01901029]
[1740594002195,0.174306,86056.0,86055.0,0.01901026]
[1740594002568,0.232401,86058.0,86054.0,0.01901026]
[1740594002790,0.174311,86053.0,86052.0,0.00300003]
[1740594003527,0.174311,86053.0,86052.0,3e-08]
[1740594004981,0.175311,86053.0,86052.0,0.00742393]
[1740594005428,0.175311,86053.0,86052.0,0.02643419]
[1740594005644,0.02561479,86093.0,86071.0,0.01901026]
[1740594005843,0.17439567,86072.0,86071.0,0.03077026]
[1740594006049,0.17439567,86072.0,86071.0,0.02977026]
[1740594006257,0.17439567,86072.0,86071.0,0.32977026]
[1740594006663,0.17539567,86072.0,86071.0,0.33677026]
[1740594007507,0.17539567,86072.0,86071.0,0.32501026]
[1740594007739,7.77473663,86094.0,86093.0,0.01801026]
[1740594008138,7.77457905,86094.0,86093.0,0.01801026]
[1740594008538,7.77457905,86094.0,86093.0,0.02977026]
[1740594008942,7.77457905,86094.0,86093.0,0.01801026]
[1740594009183,7.77457905,86094.0,86093.0,0.03677026]
[1740594009626,7.77457905,86094.0,86093.0,0.01801026]
[1740594009829,0.174244,86086.0,86085.0,0.06741026]
[1740594010005,0.174244,86086.0,86085.0,0.07917026]
[1740594010328,0.174244,86086.0,86085.0,0.01801026]
[1740594010516,7.60035105,86094.0,86077.0,0.01801026]
[1740594010690,0.174276,86070.0,86068.0,0.01801026]
[1740594010894,0.174276,86070.0,86046.0,0.5478]
[1740594010895,0.174276,86070.0,86069.0,0.01176]
[1740594011510,0.174276,86070.0,86069.0,0.01801026]
[1740594011711,0.174276,86070.0,86069.0,0.02977026]
[1740594012292,0.174276,86070.0,86069.0,0.01176]
[1740594012493,0.174292,86062.0,86061.0,0.01801026]
[1740594012793,0.174292,86062.0,86061.0,0.02977026]
[1740594012983,0.174292,86062.0,86061.0,0.02726138]
[1740594013177,0.174292,86062.0,86061.0,0.02767389]
[1740594013454,0.174292,86062.0,86061.0,0.00041251]
[1740594014618,0.174287,86065.0,86064.0,0.01801026]
[1740594014820,0.174287,86065.0,86064.0,0.34531026]
[1740594015022,0.174287,86065.0,86064.0,0.64531026]
[1740594015228,0.174287,86065.0,86064.0,0.65707026]
[1740594015441,0.174287,86065.0,86064.0,0.01801026]
[1740594015645,0.174287,86065.0,86064.0,0.02977026]
[1740594015848,0.174287,86065.0,86064.0,0.04377026]
[1740594016061,0.174287,86065.0,86064.0,0.02501026]
[1740594016268,0.174311,86053.0,86052.0,7e-07]
[1740594017514,0.1751592,86053.0,86052.0,7e-07]
[1740594018030,0.1761592,86053.0,86052.0,0.0070007]
[1740594018256,0.1761592,86053.0,86052.0,7e-07]
[1740594018496,0.1771592,86053.0,86052.0,0.0020007]
[1740594018706,0.1761592,86053.0,86052.0,7e-07]
[1740594018917,0.1761592,86053.0,86052.0,0.0759007]
[1740594019124,0.1761592,86053.0,86052.0,0.72674155]
[1740594019125,0.0038482,86053.0,86052.0,0.72674155]
[1740594019358,0.0028482,86053.0,86052.0,2.22674155]
[1740594019563,0.1771592,86053.0,86052.0,2.23350155]
[1740594019770,0.1781592,86053.0,86052.0,2.2259607]
[1740594020397,0.1781592,86053.0,86052.0,2.1500607]
[1740594020612,0.1781592,86053.0,86052.0,0.3227607]
[1740594020818,0.1761592,86053.0,86052.0,0.3187607]
[1740594021014,0.1761592,86053.0,86052.0,0.3140007]
[1740594021221,0.1771592,86053.0,86052.0,0.0257607]
[1740594021424,0.1771592,86053.0,86052.0,0.0187607]
[1740594021625,0.1781592,86053.0,86052.0,0.0247607]
[1740594021995,0.1761592,86053.0,86052.0,7e-07]
[1740594022172,0.1761592,86053.0,86052.0,0.0060007]
[1740594022173,0.1771592,86053.0,86052.0,0.0060007]
[1740594022372,0.1781592,86053.0,86052.0,0.0060007]
[1740594022597,0.1771592,86053.0,86052.0,0.006]
[1740594023001,0.1781592,86053.0,86052.0,0.013]
[1740594023599,0.174325,86046.0,86037.0,0.01176]
[1740594024190,0.16970565,86046.0,86037.0,0.01176]
[1740594024603,0.17070565,86046.0,86045.0,0.007]
[1740594025468,0.17170565,86046.0,86045.0,0.007]
[1740594028462,0.17160565,86046.0,86045.0,0.007]
[1740594028867,0.19820257,86048.0,86045.0,0.007]
[1740594029074,0.14530392,86046.0,86045.0,0.007]
[1740594029494,0.14530392,86046.0,86045.0,0.0074241]
[1740594031993,0.15262932,86046.0,86045.0,0.0074241]
[1740594032541,0.15362932,86046.0,86045.0,0.0074241]
[1740594040062,0.15362932,86046.0,86045.0,0.0044241]
[1740594040301,0.15462932,86046.0,86045.0,0.0054241]
[1740594040572,0.15362932,86046.0,86045.0,0.0054241]
[1740594040833,0.15362932,86046.0,86045.0,0.0044241]
[1740594041033,0.15562932,86046.0,86045.0,0.0124241]
[1740594041241,0.00209758,86046.0,86045.0,0.0054241]
[1740594041441,0.17742258,86046.0,86045.0,0.0064241]
[1740594041647,0.17842258,86046.0,86045.0,0.0134241]
[1740594041848,0.17842258,86046.0,86045.0,0.0114241]
[1740594042050,0.17742258,86046.0,86045.0,0.0044241]
[1740594042256,0.17742258,86046.0,86045.0,0.0024521]
[1740594042461,0.17842258,86046.0,86045.0,0.0845521]
[1740594043254,0.17942258,86046.0,86045.0,0.0915521]
[1740594043413,0.17842258,86046.0,86045.0,0.0915521]
[1740594043614,0.17742258,86046.0,86045.0,0.0845521]
[1740594043863,0.17842258,86046.0,86045.0,0.0212121]
[1740594044539,0.17942258,86046.0,86045.0,0.0282121]
[1740594044970,0.17942258,86046.0,86045.0,0.0164521]
[1740594045284,0.17942258,86046.0,86045.0,0.0282121]
[1740594045793,0.17942258,86046.0,86045.0,0.0277211]
[1740594045935,0.17942258,86046.0,86045.0,0.0159611]
[1740594046122,0.17942258,86046.0,86045.0,0.0277211]
[1740594046520,0.17942258,86046.0,86045.0,0.0159611]
[1740594046769,0.17942258,86046.0,86045.0,0.0277211]
[1740594047043,0.17942258,86046.0,86045.0,0.0159611]
[1740594048102,0.174327,86045.0,86044.0,9e-07]
[1740594048483,0.17553404,86045.0,86044.0,9e-07]
[1740594048890,0.1839298,86045.0,86044.0,9e-07]
[1740594049392,0.174349,86034.0,86033.0,1e-07]
[1740594049517,0.252249,86034.0,86033.0,1e-07]
[1740594049726,0.26063022,86034.0,86033.0,1e-07]
[1740594049924,0.232471,86032.0,86014.0,0.0222]
[1740594050149,0.09292763,86026.0,86014.0,0.0222]
[1740594050512,0.1262,86025.0,86011.0,0.1]
[1740594050730,0.09304085,86023.0,86011.0,0.1]
[1740594050938,0.232493,86024.0,86011.0,0.1]
[1740594050939,0.01454085,86020.0,86011.0,0.1]
[1740594051140,0.01454085,86021.0,86011.0,0.1]
[1740594051348,0.37201948,86013.0,86007.0,0.01214284]
[1740594051551,0.174396,86011.0,86007.0,0.01214284]
[1740594051798,0.174416,86001.0,86000.0,14.35319643]
[1740594052001,0.27987155,86001.0,86000.0,14.35319643]
[1740594052574,0.10545555,86001.0,86000.0,14.35319643]
[1740594052794,0.00041251,86026.0,86000.0,14.35319643]
[1740594052997,0.10545555,86025.0,86000.0,14.35319643]
[1740594053236,0.10545555,86025.0,86000.0,14.37319643]
[1740594053400,0.10545555,86025.0,86000.0,14.35319643]
[1740594053791,0.10545555,86025.0,86017.0,0.02]
[1740594053982,0.00041251,86026.0,86018.0,0.01176]
[1740594054187,0.00041251,86026.0,86020.0,0.02]
[1740594054434,0.00041251,86026.0,86021.0,0.02]
[1740594054706,0.174373,86022.0,86021.0,0.02]
[1740594054911,0.232493,86024.0,86021.0,0.02]
[1740594055120,0.17438,86019.0,86018.0,0.03176]
[1740594055272,0.17438,86019.0,86018.0,0.01176]
[1740594055472,0.17555185,86019.0,86018.0,0.01176]
[1740594055674,0.174394,86012.0,86011.0,0.0454241]
[1740594055926,0.174394,86012.0,86011.0,0.08372651]
[1740594056079,0.17554264,86012.0,86011.0,0.08372651]
[1740594056280,0.17554264,86012.0,86011.0,0.06372651]
[1740594056862,0.19684358,86012.0,86011.0,0.06372651]
[1740594057486,0.02244958,86012.0,86011.0,0.08372651]
[1740594057687,0.02344958,86012.0,86011.0,0.08372651]
[1740594057845,0.02344958,86012.0,86011.0,0.10372651]
[1740594058051,0.0303879,86012.0,86011.0,0.10372651]
[1740594058255,0.02130094,86012.0,86011.0,0.10372651]
[1740594058480,0.02248647,86012.0,86011.0,0.10372651]
[1740594058709,0.19688047,86012.0,86011.0,0.0956841]
[1740594058949,0.19688047,86012.0,86011.0,0.0756841]
[1740594059165,0.19688047,86012.0,86011.0,0.0556841]
[1740594059389,0.19688047,86012.0,86011.0,0.0439241]
[1740594059836,0.19688047,86012.0,86011.0,0.0004241]
[1740594060088,0.19788047,86012.0,86011.0,0.0064241]
[1740594060723,0.2319256,86012.0,86011.0,0.0064241]
[1740594061150,0.0575316,86012.0,86011.0,0.0264241]
[1740594061391,0.0575316,86012.0,86011.0,0.0464241]
[1740594061861,0.05634607,86012.0,86011.0,0.0935241]
[1740594062124,0.06380322,86077.0,86011.0,0.0935241]
[1740594062125,0.034977,86058.0,86025.0,0.04]
[1740594062330,0.10545555,86063.0,86025.0,0.58561167]
[1740594062550,0.10545555,86076.0,86045.0,0.04]
[1740594062756,0.10545555,86076.0,86045.0,0.1153]
[1740594062964,0.00485,86077.0,86045.0,0.47166452]
[1740594063170,0.174292,86063.0,86045.0,0.47166452]
[1740594063406,0.00485,86077.0,86045.0,0.47166452]
[1740594063623,0.232418,86052.0,86045.0,0.13712367]
[1740594063827,0.232418,86052.0,86045.0,0.04722367]
[1740594063828,0.1751732,86046.0,86045.0,0.04722367]
[1740594064037,0.18171316,86046.0,86045.0,0.05340604]
[1740594064245,0.00738816,86046.0,86045.0,0.08800604]
[1740594064455,0.00738816,86046.0,86045.0,0.40254689]
[1740594064672,0.0008482,86046.0,86045.0,0.40154689]
[1740594064881,0.0008482,86046.0,86045.0,0.48304689]
[1740594065087,0.0008482,86046.0,86045.0,0.49480689]
[1740594065310,0.039808,86103.0,86052.0,0.0346]
[1740594065311,0.0031964,86053.0,86052.0,0.0346]
[1740594065515,0.0031964,86053.0,86052.0,0.06706]
[1740594065730,0.0031964,86053.0,86052.0,0.08160085]
[1740594065979,0.1775074,86053.0,86052.0,0.08160085]
[1740594066810,0.232404,86057.0,86052.0,0.08160085]
[1740594067043,0.232398,86059.0,86058.0,0.019]
[1740594067486,0.232398,86059.0,86058.0,0.018]
[1740594068234,0.001,86059.0,86058.0,0.0396]
[1740594068448,0.001,86059.0,86058.0,0.05414085]
[1740594068675,0.174298,86060.0,86059.0,0.018]
[1740594069331,0.179112,86077.0,86076.0,0.0146]
[1740594069551,0.179112,86077.0,86076.0,0.07466]
[1740594069865,0.179112,86077.0,86076.0,0.089896]
[1740594070027,0.00485,86077.0,86058.0,0.007]
[1740594070249,0.174299,86059.0,86058.0,0.007]
[1740594070458,0.174337,86040.0,86039.0,0.146]
[1740594070893,0.174361,86028.0,86027.0,0.0146]
[1740594071115,0.174365,86026.0,86025.0,0.0330241]
[1740594071551,0.17972751,86026.0,86025.0,0.0330241]
[1740594071730,0.17985118,86026.0,86025.0,0.0330241]
[1740594072622,0.00548618,86026.0,86025.0,0.44057577]
[1740594072825,0.002,86080.0,86046.0,0.0146]
[1740594073042,0.174319,86049.0,86048.0,0.0146]
[1740594073243,0.174319,86049.0,86048.0,0.02636]
[1740594073356,0.174319,86049.0,86048.0,0.0146]
[1740594074086,0.174319,86049.0,86048.0,0.02636]
[1740594074509,0.174319,86049.0,86048.0,0.0326]
[1740594074807,0.174297,86060.0,86059.0,0.0146]
[1740594075002,0.174297,86060.0,86059.0,0.03082]
[1740594075632,0.174297,86060.0,86059.0,0.04258]
[1740594076777,0.17561194,86060.0,86059.0,0.03082]
[1740594076985,0.17561194,86060.0,86059.0,0.04882]
[1740594077184,0.17561194,86060.0,86059.0,0.05136]
[1740594077662,0.17561194,86060.0,86059.0,0.0326]
[1740594078074,0.17561194,86060.0,86059.0,0.05136]
[1740594078275,0.17561194,86060.0,86059.0,0.0396]
[1740594078474,0.17561194,86060.0,86059.0,0.06025]
[1740594078904,0.17561194,86060.0,86059.0,0.04849]
[1740594079077,0.17561194,86060.0,86059.0,0.0396]
[1740594079282,0.17561194,86060.0,86059.0,0.0326]
[1740594079434,0.17561194,86060.0,86059.0,0.0396]
[1740594080406,0.17999906,86060.0,86059.0,0.0396]
[1740594080614,0.17999906,86060.0,86059.0,0.04436]
[1740594080788,0.17999906,86060.0,86059.0,0.053726]
[1740594080950,0.17999906,86060.0,86059.0,0.046126]
[1740594081155,0.17999906,86060.0,86059.0,0.048966]